bitfinex/quotes_ETHUSD_20240825
["timestamp","ask_amount","ask_price","bid_price","bid_amount"]
[1724587929252,6.08689,2757.1,2756.6,0.34048369]
[1724587929593,2.4599,2757.1,2756.7,0.56747123]
[1724587929799,2.4599,2757.1,2756.8,0.56747123]
[1724587930001,2.4599,2757.1,2756.9,0.56747123]
[1724587930171,2.4599,2757.1,2756.6,4.38714837]
[1724587930371,2.4599,2757.1,2756.7,0.56747072]
[1724587930595,2.4599,2757.1,2756.8,0.56747072]
[1724587930797,2.4599,2757.1,2756.9,0.56747072]
[1724587930962,2.4599,2757.1,2756.6,4.72763093]
[1724587931162,2.4599,2757.1,2756.7,1.40300403]
[1724587931420,2.4599,2757.1,2756.8,0.56747094]
[1724587931607,2.4599,2757.1,2756.9,0.56747094]
[1724587931815,2.4599,2757.1,2756.7,0.83553309]
[1724587931994,2.4599,2757.1,2756.8,0.56747061]
[1724587932194,2.4599,2757.1,2756.9,0.56747061]
[1724587932374,6.08703,2757.0,2756.6,0.34048256]
[1724587932574,3.62713,2757.0,2756.7,0.56746951]
[1724587932878,2.4599,2756.7,2756.3,3.62798]
[1724587933975,6.08747,2756.7,2756.2,0.34052759]
[1724587934406,3.62766,2756.6,2756.2,0.34052759]
[1724587934614,2.4599,2756.5,2756.1,7.34]
[1724587934815,2.4599,2756.5,2756.2,0.34054656]
[1724587935015,2.4599,2756.5,2756.1,3.34054656]
[1724587935183,2.4599,2756.5,2756.1,3.0]
[1724587935515,2.4599,2756.5,2756.2,0.3405479]
[1724587937354,2.4599,2756.5,2756.2,8.65649469]
[1724587937643,2.4599,2756.8,2756.3,0.34053512]
[1724587937794,2.4599,2756.8,2756.4,3.62783]
[1724587940408,6.0873,2756.8,2756.3,0.34053506]
[1724587940616,6.0873,2756.8,2756.2,4.68781679]
[1724587940956,0.06321069,2756.7,2756.3,0.34053553]
[1724587941107,0.06321069,2756.7,2756.2,4.68781679]
[1724587941288,0.06321069,2756.7,2756.3,0.34053558]
[1724587941492,2.4599,2756.8,2756.3,3.62797]
[1724587941797,2.4599,2756.8,2756.3,4.75954868]
[1724587947774,2.4599,2756.8,2756.4,0.34052893]
[1724587948066,2.4599,2756.8,2756.3,4.75954868]
[1724587948273,2.4599,2756.8,2756.4,0.34052963]
[1724587948566,2.4599,2756.8,2756.3,4.75954868]
[1724587948867,2.4599,2756.8,2756.4,0.34052898]
[1724587949078,2.4599,2756.8,2756.3,4.75954868]
[1724587949423,2.4599,2756.8,2756.4,0.34052721]
[1724587949627,2.4599,2756.8,2756.3,4.75954868]
[1724587950230,2.4599,2756.8,2756.4,0.34052754]
[1724587950429,2.4599,2756.8,2756.3,4.75954868]
[1724587950662,2.4599,2756.8,2756.4,3.96840754]
[1724587950873,2.4599,2756.8,2756.4,3.62788]
[1724587951971,6.03459,2756.9,2756.4,3.62788]
[1724587952646,3.62709,2757.1,2756.5,3.96826498]
[1724587952880,2.4073,2757.1,2756.6,3.96802604]
[1724587953028,2.4073,2757.1,2756.8,3.62737]
[1724587953373,2.4073,2757.1,2756.6,3.62753]
[1724587953374,2.4073,2757.1,2756.6,7.25507]
[1724587953579,2.4073,2757.1,2756.7,0.3404782]
[1724587953724,2.4073,2757.1,2756.6,7.25507]
[1724587954068,2.4073,2757.1,2756.7,0.34048181]
[1724587954272,2.4073,2757.1,2756.6,7.2551]
[1724587954473,2.4073,2757.1,2756.7,0.34048186]
[1724587954680,2.4073,2757.1,2756.6,7.2551]
[1724587954968,2.4073,2757.1,2756.7,0.34048174]
[1724587955271,2.4073,2757.1,2756.6,7.2551]
[1724587955643,2.4073,2757.1,2756.7,0.34048167]
[1724587956145,2.4073,2757.1,2756.6,7.25508]
[1724587956345,2.4073,2757.1,2756.6,3.62753]
[1724587956640,3.62739,2756.8,2756.7,0.34048182]
[1724587956849,3.62739,2756.8,2756.3,3.34048182]
[1724587957074,3.62739,2756.8,2756.4,0.34048182]
[1724587957372,2.4073,2756.7,2756.4,0.34048182]
[1724587958725,2.4073,2756.7,2756.3,6.62796]
[1724587958929,2.4073,2756.7,2756.4,1.396796]
[1724587959382,2.4118,2757.0,2756.4,5.024616]
[1724587959674,6.03896,2757.0,2756.4,5.024616]
[1724587960667,6.03896,2757.0,2756.5,0.34049961]
[1724587962579,0.06319749,2757.2,2756.7,3.62752]
[1724587964177,0.06319749,2757.2,2756.7,7.25494]
[1724587965681,0.06319749,2757.2,2756.7,3.62742]
[1724587966459,0.06319749,2757.2,2756.7,3.96789424]
[1724587966660,0.06319749,2757.2,2756.7,3.62742]
[1724587967580,0.06319749,2757.2,2756.7,3.96789454]
[1724587967950,0.06319749,2757.2,2756.7,7.59532454]
[1724587968151,0.06319749,2757.2,2756.7,3.62742]
[1724587969289,0.06319749,2757.2,2756.8,3.62737]
[1724587969981,0.06319749,2757.2,2757.1,3.62699]
[1724587972099,0.06319749,2757.2,2757.0,3.62709]
[1724587973397,0.06319749,2757.2,2757.0,7.25413]
[1724587973807,0.06319749,2757.2,2757.0,3.62703]
[1724587973978,0.06319749,2757.2,2756.9,0.34044127]
[1724587973979,2.4326,2757.1,2756.9,0.34044127]
[1724587974176,2.4326,2757.1,2756.9,0.8326783]
[1724587976708,2.4326,2757.1,2756.9,0.49223703]
[1724587977773,2.4326,2757.1,2756.8,3.6273]
[1724587977961,2.4326,2757.1,2756.6,3.62759]
[1724587979202,2.4326,2757.1,2756.7,3.62749]
[1724587982524,2.4326,2757.1,2756.6,3.62759]
[1724587983397,3.62707,2757.1,2756.6,3.62759]
[1724587983599,2.4836,2757.0,2756.6,3.62759]
[1724587983795,4.352465,2757.1,2756.4,3.62784]
[1724587984001,6.11086,2756.9,2756.4,3.62784]
[1724587984228,2.4836,2756.8,2756.4,3.62784]
[1724587988748,2.4836,2756.8,2756.3,3.62803]
[1724587988945,3.094686,2756.8,2756.3,3.62803]
[1724587989317,2.4121,2756.6,2756.1,3.62829]
[1724587989518,2.4121,2756.5,2756.0,7.25673]
[1724587989940,2.4121,2756.5,2756.1,3.62831]
[1724587990446,2.4121,2756.5,2756.0,3.62836]
[1724587990619,2.4121,2756.5,2756.1,0.55]
[1724587991266,2.4121,2756.4,2755.8,3.6286]
[1724587991479,2.4121,2756.3,2755.8,3.6286]
[1724587992533,3.62819,2756.2,2755.4,3.62919]
[1724587992733,2.4121,2756.0,2755.6,3.62896]
[1724587993270,2.4121,2756.0,2755.7,0.5676837]
[1724587993632,2.4121,2756.0,2755.6,3.62896]
[1724587994100,2.4121,2756.0,2755.7,1.11768752]
[1724587994240,2.4121,2756.0,2755.7,0.55]
[1724588000318,6.04055,2756.0,2755.5,0.5676866]
[1724588000483,2.4471,2755.9,2755.5,3.0]
[1724588000684,2.4471,2755.9,2755.6,0.55]
[1724588002327,2.4471,2755.9,2755.6,5.0586797]
[1724588003019,3.62823,2756.2,2755.6,5.0586797]
[1724588003190,2.4471,2756.1,2755.8,3.62869]
[1724588003376,2.4471,2756.3,2755.9,0.55]
[1724588004232,2.4471,2756.3,2756.0,3.62843]
[1724588004391,2.4471,2756.3,2756.1,0.55]
[1724588004587,2.3483,2756.5,2756.1,0.55]
[1724588005376,2.3483,2756.5,2756.2,3.62817]
[1724588005726,2.3483,2756.5,2756.3,0.55]
[1724588005931,2.3483,2756.5,2756.1,4.17827]
[1724588007278,2.3483,2756.5,2756.1,5.01569076]
[1724588007618,3.62753,2756.7,2756.3,3.62803]
[1724588007619,2.3483,2756.7,2756.3,3.62803]
[1724588007776,2.3483,2756.7,2756.4,0.55]
[1724588008223,2.3483,2756.7,2756.3,0.55]
[1724588010384,5.97586,2756.7,2756.3,0.55]
[1724588014983,3.30863,2756.7,2756.1,0.55]
[1724588015286,3.62774,2756.6,2756.2,0.56759148]
[1724588015486,3.62774,2756.6,2756.3,1.11759148]
[1724588015688,3.62774,2756.6,2756.1,0.55]
[1724588015893,3.62774,2756.6,2756.2,0.5675911]
[1724588016192,3.62774,2756.6,2756.1,0.55]
[1724588016193,3.62774,2756.6,2756.3,1.1175911]
[1724588016500,3.62774,2756.6,2756.4,0.55]
[1724588016697,3.62774,2756.6,2756.1,0.55]
[1724588017013,3.62774,2756.6,2756.1,4.17831]
[1724588017324,3.62774,2756.6,2756.1,0.55]
[1724588018286,3.62774,2756.6,2756.2,0.56759075]
[1724588018482,3.62774,2756.6,2756.1,0.55]
[1724588018727,3.62774,2756.6,2756.3,0.55]
[1724588018894,7.25549,2756.6,2756.1,0.55]
[1724588019219,3.62796,2756.4,2756.1,0.55]
[1724588019420,3.62796,2756.4,2756.0,0.55]
[1724588023035,3.62796,2756.4,2756.1,0.90820115]
[1724588023331,3.62796,2756.4,2756.2,0.55]
[1724588023716,3.62796,2756.4,2756.0,0.55]
[1724588024111,2.3483,2756.5,2756.0,0.55]
[1724588024510,5.97609,2756.5,2756.0,0.55]
[1724588026691,5.97609,2756.5,2756.0,4.17844]
[1724588026892,5.98515,2756.8,2756.2,3.62809]
[1724588027097,5.98515,2756.8,2756.3,0.55]
[1724588027337,5.98515,2756.8,2756.3,4.17801]
[1724588028991,9.61263,2756.8,2756.3,0.55]
[1724588029236,9.61266,2756.8,2756.3,0.55]
[1724588030536,3.62753,2756.7,2756.3,0.55]
[1724588033304,3.62753,2756.7,2756.2,0.55]
[1724588036670,0.06321116,2756.6,2756.2,0.55]
[1724588039538,2.3577,2756.5,2756.2,0.55]
[1724588040376,2.42091234,2756.5,2756.2,0.55]
[1724588042239,2.42091234,2756.5,2756.2,1.01217232]
[1724588042240,0.06321234,2756.5,2756.2,1.01217232]
[1724588045485,0.06321234,2756.5,2756.4,3.62792]
[1724588045685,3.62721,2757.0,2756.4,4.51834445]
[1724588045987,3.62721,2757.0,2756.5,0.89051445]
[1724588046153,3.62721,2757.0,2756.6,0.34051445]
[1724588046354,3.62721,2757.0,2756.7,0.55]
[1724588046767,3.62721,2757.0,2756.6,0.8904935]
[1724588046977,7.25443,2757.0,2756.6,0.55]
[1724588047138,7.25443,2757.0,2756.5,0.55]
[1724588047344,3.62721,2757.0,2756.6,0.34049796]
[1724588047559,3.62721,2757.0,2756.7,0.55]
[1724588047984,3.62721,2757.0,2756.5,0.55]
[1724588048182,3.62721,2757.0,2756.6,0.34049789]
[1724588048340,3.62721,2757.0,2756.7,0.55]
[1724588048546,2.2739,2757.1,2756.7,0.55]
[1724588048859,2.2739,2757.1,2756.5,0.89050614]
[1724588049061,2.2739,2757.1,2756.6,0.79233775]
[1724588049252,2.2739,2757.1,2756.7,0.55]
[1724588050199,5.90094,2757.1,2756.7,0.55]
[1724588050797,5.90094,2757.1,2756.5,0.55]
[1724588050956,5.90094,2757.1,2756.5,0.89050402]
[1724588051157,5.90094,2757.1,2756.6,0.34050402]
[1724588051353,3.62716,2757.0,2756.7,0.55]
[1724588051583,9.73628664,2757.4,2756.7,0.55]
[1724588051584,3.62739,2756.8,2756.7,0.55]
[1724588051892,3.62739,2756.8,2756.3,3.0]
[1724588052091,3.62739,2756.8,2756.4,0.55]
[1724588053499,2.2568,2756.7,2756.4,0.55]
[1724588076081,2.2568,2756.7,2756.4,4.17791]
[1724588076580,6.04493,2757.1,2756.6,3.62765]
[1724588076785,2.4179,2757.1,2756.7,0.55]
[1724588078089,6.04489,2757.1,2756.7,0.55]
[1724588079742,6.04489,2757.1,2756.8,0.56750836]
[1724588080039,6.04489,2757.1,2756.7,0.55]
[1724588082583,6.04489,2757.1,2756.5,4.17778]
[1724588083768,6.04489,2757.1,2756.6,0.90801699]
[1724588084014,6.04489,2757.1,2756.7,1.45801699]
[1724588084308,6.04489,2757.1,2756.5,4.17778]
[1724588084609,6.04489,2757.1,2756.6,0.90801751]
[1724588084809,6.04489,2757.1,2756.7,1.45801751]
[1724588084982,6.04489,2757.1,2756.7,0.55]
[1724588085185,6.04489,2757.1,2756.6,0.55]
[1724588085384,6.04489,2757.1,2756.7,0.90801643]
[1724588085699,6.04489,2757.1,2756.8,0.55]
[1724588085904,6.04489,2757.1,2756.6,0.55]
[1724588086218,6.04489,2757.1,2756.7,0.90801492]
[1724588086513,6.04489,2757.1,2756.5,3.62778]
[1724588086514,6.04489,2757.1,2756.8,0.55]
[1724588086871,6.10809133,2757.1,2756.6,0.55]
[1724588087312,6.10809133,2757.1,2756.7,0.90801267]
[1724588087501,6.04489,2757.1,2756.8,0.55]
[1724588087698,6.04489,2757.1,2756.6,0.55]
[1724588091282,3.62715,2757.0,2756.6,0.55]
[1724588096714,2.4785,2756.9,2756.5,0.55]
[1724588097698,6.10609,2756.7,2756.5,0.55]
[1724588098032,6.10609,2756.7,2756.4,0.55]
[1724588099289,2.4785,2756.7,2756.4,0.55]
[1724588103600,2.4785,2756.7,2756.4,4.17789]
[1724588115661,2.2683,2757.0,2756.4,4.17789]
[1724588115975,2.2683,2757.0,2756.5,0.417789]
[1724588116178,2.2683,2757.0,2756.6,0.55]
[1724588117265,2.2683,2757.0,2756.6,4.17765]
[1724588120164,2.2683,2757.0,2756.6,4.17758]
[1724588122104,2.2683,2757.0,2756.6,4.17757]
[1724588122277,2.2683,2757.0,2756.6,4.9998919]
[1724588123072,9.28463069,2757.6,2756.6,4.9998919]
[1724588123073,4.6099263,2757.5,2756.7,2.5244477]
[1724588123276,2.3314,2757.5,2757.1,3.62691]
[1724588123502,2.3314,2757.5,2757.2,0.362691]
[1724588123724,5.95761,2757.7,2757.3,0.55]
[1724588123928,9.58392,2757.7,2757.3,0.55]
[1724588124237,9.58392,2757.7,2757.1,3.62691]
[1724588124238,5.95761,2757.7,2757.2,0.55]
[1724588124777,9.58392,2757.7,2757.2,0.55]
[1724588125096,2.3247,2757.4,2757.2,0.55]
[1724588125295,2.3247,2757.4,2757.0,0.55]
[1724588131135,2.3247,2757.4,2757.0,4.17711]
[1724588133435,7.25256,2757.7,2757.0,4.17711]
[1724588133730,2.3018,2757.6,2757.0,4.17711]
[1724588133941,5.92814,2757.6,2757.0,4.17711]
[1724588134140,6.88358,2757.6,2757.0,4.17711]
[1724588136111,6.88358,2757.6,2757.1,3.62699]
[1724588136112,5.92814,2757.6,2757.1,3.62699]
[1724588137336,2.3018,2757.6,2757.1,3.62699]
[1724588137543,2.3018,2757.9,2757.6,3.62634]
[1724588137838,2.3018,2757.9,2757.4,3.62648]
[1724588137992,2.3018,2757.9,2757.5,0.55]
[1724588146043,5.92775,2757.9,2757.5,0.55]
[1724588146237,9.5538,2757.9,2757.5,0.55]
[1724588146438,3.62626,2757.7,2757.3,0.5673683]
[1724588146641,3.62626,2757.7,2757.4,0.55]
[1724588146942,3.62626,2757.7,2757.3,0.55]
[1724588147642,2.4868,2757.6,2757.4,0.56736242]
[1724588147800,6.11319,2757.6,2757.3,0.55]
[1724588148036,9.73961,2757.6,2757.2,0.55]
[1724588148237,6.11319,2757.6,2757.3,0.5673674]
[1724588148437,6.11319,2757.6,2757.1,1.45778785]
[1724588148679,6.11319,2757.6,2757.2,0.56738426]
[1724588148883,6.11319,2757.6,2757.3,0.55]
[1724588149306,6.11319,2757.6,2757.1,1.45782502]
[1724588149580,6.11319,2757.6,2757.2,0.56738892]
[1724588149762,6.11319,2757.6,2757.3,1.11738892]
[1724588149934,6.11319,2757.6,2757.1,0.55]
[1724588150135,2.4868,2757.2,2756.0,0.76072557]
[1724588150448,0.973933,2757.6,2756.1,1.47565377]
[1724588150449,2.4868,2756.4,2756.1,1.47565377]
[1724588150652,2.4868,2756.4,2756.2,0.56755914]
[1724588150851,2.4868,2756.4,2756.3,0.56755914]
[1724588151938,2.4868,2756.4,2756.3,0.56759282]
[1724588152139,2.4868,2756.4,2756.0,3.62844]
[1724588152366,2.4868,2756.4,2756.1,1.11759288]
[1724588152555,2.4868,2756.4,2756.2,0.56759288]
[1724588152766,2.4868,2756.4,2756.1,0.55]
[1724588153092,2.4868,2756.4,2755.6,3.62892]
[1724588153093,3.62818,2756.2,2755.6,3.62892]
[1724588153251,3.62818,2756.2,2755.7,0.93051213]
[1724588153451,3.62818,2756.2,2755.8,0.56762013]
[1724588153658,3.62818,2756.2,2755.9,0.56762013]
[1724588153854,3.62818,2756.2,2756.0,0.56762013]
[1724588154068,6.11474,2756.4,2755.7,3.991652]
[1724588154274,6.11474,2756.4,2755.8,0.5676263]
[1724588154475,3.62815,2756.3,2755.9,0.5676263]
[1724588154793,3.62815,2756.3,2756.0,0.56762877]
[1724588154942,3.62815,2756.3,2755.8,0.56762877]
[1724588155141,3.62815,2756.3,2755.9,1.11762877]
[1724588155451,6.11474,2756.4,2755.9,0.55]
[1724588155656,2.4868,2756.7,2755.9,3.84079308]
[1724588155890,4.08531157,2757.6,2756.3,3.62804]
[1724588155891,2.4868,2756.9,2756.3,3.62804]
[1724588156387,6.11406,2756.9,2756.4,1.11753531]
[1724588156691,2.4868,2756.9,2756.4,4.74541531]
[1724588157538,2.4868,2756.9,2756.4,1.11753531]
[1724588158384,2.4868,2756.9,2756.4,4.74534531]
[1724588158687,2.4868,2756.9,2756.4,5.58267584]
[1724588160541,6.11407,2756.9,2756.4,1.95486584]
[1724588160730,2.4868,2756.9,2756.4,1.95486584]
[1724588160915,11.08722,2757.0,2756.5,3.6277]
[1724588160916,7.46,2757.0,2756.5,3.6277]
[1724588161237,2.394,2757.5,2756.7,3.62747]
[1724588161387,2.394,2757.5,2756.8,4.17732]
[1724588161590,3.62662,2757.4,2756.8,4.17732]
[1724588161829,3.62662,2757.4,2756.8,5.58208784]
[1724588162140,3.62688,2757.2,2756.8,0.55]
[1724588162344,3.62688,2757.2,2756.7,0.55]
[1724588162650,3.62688,2757.2,2756.7,1.11746478]
[1724588163604,2.394,2757.3,2756.7,4.74489478]
[1724588163814,2.394,2757.3,2756.8,0.83724548]
[1724588163991,2.394,2757.3,2756.8,4.46461548]
[1724588164195,2.394,2757.3,2756.9,0.55]
[1724588167342,2.394,2757.3,2756.9,4.17717]
[1724588167544,2.394,2757.3,2756.9,4.7445936]
[1724588167743,2.394,2757.3,2756.9,5.66550751]
[1724588168583,2.394,2757.3,2756.9,4.17717]
[1724588169365,3.62655,2757.5,2757.0,0.56739699]
[1724588170051,6.01911,2757.6,2757.0,0.56739699]
[1724588170393,6.01911,2757.6,2757.1,4.7443377]
[1724588170394,2.3927,2757.6,2757.1,4.7443377]
[1724588171175,6.01905,2757.6,2757.1,4.7443377]
[1724588172408,6.01905,2757.6,2757.1,4.17697]
[1724588175167,3.62635,2757.6,2757.1,5.201144]
[1724588178615,3.62635,2757.6,2757.2,0.56735597]
[1724588178983,3.62635,2757.6,2757.1,5.201144]
[1724588179171,7.25278,2757.6,2757.1,1.574174]
[1724588180203,3.62635,2757.6,2757.1,1.574174]
[1724588180805,7.25277,2757.6,2757.1,1.574174]
[1724588181009,3.62635,2757.6,2757.1,1.574174]
[1724588181229,3.62635,2757.6,2757.2,0.56736111]
[1724588181999,7.25278,2757.6,2757.2,0.56736111]
[1724588182308,7.25278,2757.6,2757.1,1.574174]
[1724588182511,7.25278,2757.6,2757.2,0.56736083]
[1724588182714,3.62635,2757.6,2757.1,1.574174]
[1724588183013,3.62635,2757.6,2757.2,0.56736083]
[1724588183212,3.62635,2757.6,2757.1,1.574174]
[1724588183414,3.62635,2757.6,2757.2,0.56736086]
[1724588183567,3.62635,2757.6,2757.1,1.574174]
[1724588183772,3.62635,2757.6,2757.2,0.56736181]
[1724588183973,3.62635,2757.6,2757.1,1.574174]
[1724588184215,3.62635,2757.6,2757.2,0.56736067]
[1724588184509,3.62635,2757.6,2757.3,0.56736067]
[1724588184715,3.62635,2757.6,2757.1,1.574174]
[1724588185024,3.62635,2757.6,2757.2,0.56736061]
[1724588185175,3.62635,2757.6,2757.3,0.56736061]
[1724588185375,3.62635,2757.6,2757.4,0.56736058]
[1724588185689,3.62635,2757.6,2757.1,0.55]
[1724588185894,3.62635,2757.6,2757.2,0.56736095]
[1724588186129,3.62635,2757.6,2757.3,0.56736095]
[1724588186623,3.62635,2757.6,2757.4,0.56736095]
[1724588186806,3.62635,2757.6,2757.1,1.574186]
[1724588186990,3.62635,2757.6,2757.2,0.56736006]
[1724588187192,3.62635,2757.6,2757.3,0.56736006]
[1724588187394,3.62635,2757.6,2757.4,0.56736006]
[1724588187595,3.62635,2757.6,2757.1,1.574186]
[1724588187796,3.62635,2757.6,2757.2,0.56736081]
[1724588187996,3.62635,2757.6,2757.3,0.56736081]
[1724588188198,3.62635,2757.6,2757.4,0.56736081]
[1724588188418,3.62635,2757.6,2757.1,1.574186]
[1724588188623,3.62635,2757.6,2757.2,0.56736156]
[1724588188903,3.62635,2757.6,2757.3,0.56736156]
[1724588189121,3.62635,2757.6,2757.4,0.56736139]
[1724588189307,3.62635,2757.6,2757.5,0.56736139]
[1724588189551,3.62635,2757.6,2757.5,0.5673607]
[1724588192671,3.62635,2757.6,2757.1,1.574186]
[1724588192816,3.62635,2757.6,2757.5,0.56736143]
[1724588193227,3.62635,2757.6,2757.5,0.56736142]
[1724588197927,2.3927,2757.9,2757.5,0.56736142]
[1724588198145,6.01867,2757.9,2757.6,1.11736142]
[1724588198385,3.62607,2757.8,2757.7,0.56736142]
[1724588198535,7.854007,2757.8,2757.7,0.56736142]
[1724588202633,7.854007,2757.8,2757.1,3.62699]
[1724588202954,7.25225,2757.8,2757.2,5.08459569]
[1724588203137,7.25225,2757.8,2757.2,4.17685]
[1724588203335,3.62607,2757.8,2757.2,4.17685]
[1724588203788,3.62607,2757.8,2757.3,0.34040261]
[1724588204439,3.62607,2757.8,2757.2,4.17685]
[1724588204589,7.25223,2757.8,2757.3,0.75808728]
[1724588204795,7.25223,2757.8,2757.3,0.417685]
[1724588204992,3.62607,2757.8,2757.3,0.417685]
[1724588205289,7.25222,2757.8,2757.4,0.34040266]
[1724588205492,7.25222,2757.8,2757.3,0.417685]
[1724588205691,7.25222,2757.8,2757.4,0.34040268]
[1724588205875,3.62607,2757.8,2757.3,0.417685]
[1724588208200,2.3316,2757.6,2757.3,0.34041933]
[1724588208399,2.3316,2757.6,2757.2,5.01397378]
[1724588208600,2.3316,2757.6,2757.3,0.34042596]
[1724588208762,2.3316,2757.6,2757.2,5.01397378]
[1724588209103,2.3316,2757.6,2757.3,0.34041829]
[1724588209312,2.3316,2757.6,2757.2,5.01397378]
[1724588209489,2.3316,2757.6,2757.3,0.34041824]
[1724588209808,2.3316,2757.6,2757.4,0.34041828]
[1724588209991,2.3316,2757.6,2757.3,0.5354392]
[1724588210507,2.3316,2757.6,2757.4,0.34041675]
[1724588210798,2.3316,2757.6,2757.5,0.9077785]
[1724588212713,2.3316,2757.6,2757.3,0.5354392]
[1724588213015,2.3316,2757.6,2757.4,0.34041798]
[1724588213191,2.3316,2757.6,2757.3,0.5354392]
[1724588213396,5.95801,2757.6,2757.4,0.34041549]
[1724588213579,2.3316,2757.6,2757.0,3.62705]
[1724588213768,2.3316,2757.6,2757.1,0.89042273]
[1724588213969,3.62667,2757.4,2757.2,0.34042273]
[1724588214205,2.3316,2757.3,2756.8,3.62731]
[1724588214413,5.95833,2757.3,2756.9,1.62713674]
[1724588214662,5.95833,2757.3,2757.0,0.34045524]
[1724588215004,2.3316,2757.3,2757.1,0.34045524]
[1724588215159,2.3316,2757.3,2756.9,4.17724]
[1724588215359,2.3316,2757.3,2757.0,0.34045812]
[1724588215588,2.3316,2757.3,2756.9,4.17724]
[1724588215806,2.3316,2757.3,2757.1,0.3404548]
[1724588215990,2.3316,2757.3,2756.9,4.17724]
[1724588216418,2.3316,2757.3,2757.0,0.34045601]
[1724588216582,2.3316,2757.3,2757.1,0.34045601]
[1724588216790,2.3316,2757.3,2756.9,4.17724]
[1724588216979,2.3316,2757.3,2757.0,0.34045615]
[1724588217179,2.3316,2757.3,2757.1,0.34045615]
[1724588217432,2.3316,2757.3,2756.9,4.957695]
[1724588217586,2.3316,2757.3,2757.0,0.34045356]
[1724588217797,2.3316,2757.3,2757.1,0.34045356]
[1724588217978,2.3316,2757.3,2756.9,4.957695]
[1724588218183,2.3316,2757.3,2757.0,0.34045396]
[1724588218501,2.3316,2757.3,2757.1,0.34045396]
[1724588218726,2.3316,2757.3,2756.9,4.957695]
[1724588219038,2.3316,2757.3,2757.0,0.3404496]
[1724588219190,2.3316,2757.3,2756.9,4.957695]
[1724588219393,2.3316,2757.3,2757.0,0.34044879]
[1724588219597,2.3316,2757.3,2757.0,0.6808972]
[1724588219787,2.3316,2757.3,2757.0,0.34044879]
[1724588223794,2.3316,2757.3,2756.9,0.55]
[1724588226021,2.3316,2757.3,2756.9,4.17725]
[1724588226331,2.3316,2757.3,2756.9,4.957705]
[1724588233293,2.344,2757.5,2757.0,3.62704]
[1724588233521,2.344,2757.5,2757.1,0.55]
[1724588233727,2.344,2757.5,2757.2,3.62686]
[1724588234935,2.344,2757.5,2757.1,0.55]
[1724588235544,2.344,2757.5,2757.1,1.4084495]
[1724588239017,7.46,2757.6,2757.1,1.4084495]
[1724588239238,7.46,2757.6,2757.2,7.25355]
[1724588239438,7.46,2757.6,2757.3,0.55]
[1724588240568,7.46,2757.6,2757.3,4.17665]
[1724588240876,7.46,2757.6,2757.3,0.55]
[1724588241426,3.62611,2757.8,2757.3,0.55]
[1724588241626,7.25228,2757.8,2757.3,0.55]
[1724588241862,3.62611,2757.8,2757.3,0.55]
[1724588243090,3.62611,2757.8,2757.3,0.967676]
[1724588244991,3.62611,2757.8,2757.3,4.594396]
[1724588249955,3.62634,2757.6,2757.1,3.62697]
[1724588250289,5.88684,2757.6,2757.0,5.93511]
[1724588250487,5.88684,2757.6,2757.2,0.55]
[1724588250698,5.88684,2757.6,2757.1,0.55]
[1724588250699,3.6265,2757.5,2757.1,0.55]
[1724588251003,3.6266,2757.4,2757.1,0.55]
[1724588251200,3.6266,2757.4,2756.9,4.17725]
[1724588251493,2.2605,2757.5,2756.7,10.40292557]
[1724588251798,3.62683,2757.3,2756.7,13.26963]
[1724588252000,3.62683,2757.3,2756.7,14.93905841]
[1724588252595,3.62683,2757.3,2756.7,12.63685841]
[1724588252795,2.2605,2757.2,2756.7,12.63685841]
[1724588253093,2.2605,2757.2,2756.8,0.55]
[1724588257898,2.2605,2757.2,2756.8,4.17737]
[1724588258078,2.2605,2757.2,2756.8,5.42480584]
[1724588258653,5.88745,2757.2,2756.6,10.25513]
[1724588258968,5.88745,2757.2,2756.7,0.55]
[1724588259796,5.88745,2757.2,2756.7,4.17752]
[1724588263202,5.88745,2757.2,2756.8,0.5674652]
[1724588263367,5.88745,2757.2,2756.9,0.5674652]
[1724588263771,5.88745,2757.2,2757.0,0.5674652]
[1724588263967,2.2605,2757.2,2756.8,3.62737]
[1724588264270,2.2605,2757.2,2756.8,4.707863]
[1724588264972,2.2543,2757.4,2756.9,0.55]
[1724588265382,2.2543,2757.4,2757.0,3.62711]
[1724588268894,2.2543,2757.4,2756.9,0.55]
[1724588268895,5.88093,2757.4,2756.9,0.55]
[1724588269041,2.2543,2757.3,2756.9,0.55]
[1724588275441,5.88109,2757.3,2756.9,0.55]
[1724588280005,5.88109,2757.3,2756.9,0.89046283]
[1724588280202,5.88109,2757.3,2756.9,0.55]
[1724588280911,2.2543,2757.3,2756.9,0.55]
[1724588281612,5.8811,2757.3,2756.9,0.55]
[1724588284588,2.2543,2757.3,2756.9,0.55]
[1724588284921,9.7579,2757.5,2756.9,1.216127]
[1724588285106,9.7579,2757.5,2756.9,0.55]
[1724588286214,3.62661,2757.4,2756.9,4.17725]
[1724588287132,3.62675,2757.3,2756.9,0.55]
[1724588287424,2.2979,2757.2,2756.9,0.55]
[1724588290798,2.2979,2756.8,2756.4,0.5447409]
[1724588290999,5.92539,2756.8,2756.2,4.1728209]
[1724588291232,5.92539,2756.8,2756.2,7.25618]
[1724588291432,5.92539,2756.8,2756.2,7.80101402]
[1724588291741,5.92539,2756.8,2756.2,7.25618]
[1724588292292,5.92539,2756.8,2756.2,4.53451544]
[1724588292593,3.62755,2756.7,2756.2,4.53451544]
[1724588292796,5.92558,2756.6,2756.1,3.62823]
[1724588293596,2.2979,2756.6,2756.1,3.62823]
[1724588293891,2.2979,2756.6,2756.2,3.62813]
[1724588295433,2.2979,2756.8,2756.1,2.484]